[Event "Srdja Dragasevic Memorial-A 2024"]
[Site "Cetinje"]
[Date "2024.06.26"]
[Round "6.1"]
[White "Mammadova, Narmin"]
[Black "Petrov, Nikita"]
[Result "1/2-1/2"]
[ECO "A21"]
[WhiteElo "2277"]
[BlackElo "2566"]
[Annotator "TA"]
[PlyCount "50"]
[EventDate "2024.06.23"]
[EventType "swiss"]
[EventCountry "MNE"]
[SourceTitle "playchess.com"]
[Source "ChessBase"]
[SourceQuality "1"]
[TimeControl "40/5400+30:1800+30"]

{[%evp 9,50,0,1,-7,0,0,14,15,18,12,29,5,25,14,9,0,4,0,16,-3,7,0,19,-55,-18,-73,0,0,12,8,37,0,0,0,0,0,0,0,0,-11,10,8,14]} 1. c4 {[%emt 0:03:21]} e5 {[%emt 0:03:03]} 2. Nc3 {[%emt 0:00:31]} Bb4 {[%emt 0:00:27]} 3. Qc2 {[%emt 0:01:36]} Nf6 {[%emt 0:01:56]} 4. Nf3 {[%emt 0:01:36][%cal Bg1f3,Bf3d4,Bd4e2,Be2f4][%mdl 32]} Qe7 {[%emt 0:16:07]} 5. e3 {[%emt 0:03:47]} O-O {[%emt 0:01:53]} 6. a3 {[%emt 0:02:10]} Bxc3 {[%emt 0:00:10]} 7. Qxc3 {[%emt 0:00:13]} e4 {[%emt 0:12:22]} 8. Nd4 {[%emt 0:05:08]} d6 {[%emt 0:00:39]} 9. b4 {[%emt 0:08:40]} c5 {[%emt 0:00:09]} 10. bxc5 {[%emt 0:07:11]} dxc5 {[%emt 0:00:11]} 11. Ne2 {[%emt 0:00:11]} Nc6 {[%emt 0:05:33]} 12. Bb2 {[%emt 0:01:08]} Re8 {[%emt 0:00:26]} 13. Nf4 {[%emt 0:09:31]} Ne5 {[%emt 0:01:25]} 14. h3 {[%emt 0:10:43]} b6 {[%emt 0:02:08]} 15. Be2 {[%emt 0:02:26]} Bb7 {[%emt 0:01:01]} 16. O-O-O {[%emt 0:11:42]} (16. O-O $11) 16... a6 {[%emt 0:06:14]} (16... Bc6 {simplifies} 17. Qxe5 Qxe5 18. Bxe5 Rxe5 19. h4 Ree8) 17. d4 {[%emt 0:04:17]} (17. Qxe5 $11 {remains equal.} Qxe5 18. Bxe5 Rxe5 19. h4) 17... cxd4 {[%emt 0:04:09]} (17... exd3 $17 18. Bxd3 Qc7 (18... Nxd3+ 19. Rxd3 b5 20. Rhd1 $11)) 18. Qxd4 $11 {[%emt 0:01:42]} Nfd7 {[%emt 0:14:51][%cal Bf6d7,Bd7c5,Bc5d3][%mdl 32]} (18... Bc6 {simplifies} 19. Qxe5 Qxe5 20. Bxe5 Rxe5 21. Rd4 Kf8) 19. Kb1 {[%emt 0:04:43]} Nc5 {[%emt 0:01:08]} 20. Qd6 {[%emt 0:01:07]} (20. Qxe5 {simplifies} Qxe5 21. Bxe5 Rxe5 22. Rd6) 20... Ned3 {[%emt 0:03:05] Excellent horsemanship. The position is equal.} 21. Qxe7 {[%emt 0:01:34]} Rxe7 {[%emt 0:00:05][%cal Be8e7,Be7c7,Bc7c4][%mdl 32]} 22. Bxd3 {[%emt 0:05:10]} Nxd3 {[%emt 0:01:45]} 23. Nxd3 {[%emt 0:01:23]} exd3 {[%emt 0:00:05]} 24. Bd4 {[%emt 0:03:51][%cal Of2f3]} Rc7 {[%emt 0:03:42]} (24... Bxg2 $5 25. Rhg1 $8 Be4 $14) 25. f3 {[%emt 0:00:13]} Rxc4 {[%emt 0:02:44] Weighted Error Value: White=0.17 (very precise) /Black=0.17 (very precise) .  Mistake:       	White=2     	Black=1      Inaccurate:     	White=1     	Black=2      OK:         	White=10    	Black=5} 1/2-1/2

[Event "Srdja Dragasevic Memorial-A 2024"]
[Site "Cetinje"]
[Date "2024.06.26"]
[Round "6.2"]
[White "Milanovic, Danilo"]
[Black "Saraci, Nderim"]
[Result "1/2-1/2"]
[ECO "E81"]
[WhiteElo "2438"]
[BlackElo "2449"]
[Annotator "TA"]
[PlyCount "93"]
[EventDate "2024.06.23"]
[EventType "swiss"]
[EventCountry "MNE"]
[SourceTitle "playchess.com"]
[Source "ChessBase"]
[SourceQuality "1"]
[TimeControl "40/5400+30:1800+30"]

{[%evp 11,93,13,37,0,-9,-1,53,38,14,29,137,132,215,222,319,240,264,253,258,256,273,269,350,365,358,364,369,350,384,349,449,447,478,457,458,441,373,25,38,46,32,57,42,35,32,35,33,26,32,25,25,25,25,25,25,25,25,25,25,25,36,37,37,44,51,51,51,0,51,51,51,51,64,51,51,51,51,51,51,0,51,1,34,34]} 1. d4 {[%emt 0:08:43]} Nf6 {[%emt 0:00:39]} 2. c4 {[%emt 0:00:06]} g6 {[%emt 0:01:51]} 3. Nc3 {[%emt 0:00:27]} Bg7 {[%emt 0:00:21]} 4. e4 {[%emt 0:00:07]} d6 {[%emt 0:00:06]} 5. f3 {[%emt 0:06:16]} O-O {[%emt 0:03:15]} 6. Bg5 {[%emt 0:00:33]} Nc6 {[%emt 0:07:26]} 7. d5 {[%emt 0:20:25]} (7. Qd2 $14) 7... Ne5 $11 {[%emt 0:03:09]} 8. f4 {[%emt 0:04:44]} Neg4 {[%emt 0:23:44]} ({Black should try} 8... Ned7 $11) 9. Qf3 {[%emt 0:25:42]} c6 {[%emt 0:05:18] Hoping for ...Qb6.} 10. h3 {[%emt 0:00:23]} Qb6 {[%emt 0:04:40]} 11. hxg4 $16 {[%emt 0:00:06]} Qxb2 {[%emt 0:00:07]} (11... Nxg4 $16 12. Nge2 (12. Bxe7 $2 Qxb2 13. Nge2 Qxa1+ $19) 12... f5) 12. Rb1 $18 {[%emt 0:01:53]} Qa3 {[%emt 0:00:06]} (12... Qc2 $142) 13. Bxf6 {[%emt 0:08:04]} Bxf6 {[%emt 0:04:21]} 14. Rb3 {[%emt 0:01:16]} Qc1+ {[%emt 0:03:17]} 15. Nd1 {[%emt 0:00:37]} cxd5 {[%emt 0:01:04]} 16. cxd5 {[%emt 0:00:29]} (16. exd5 $6 b5 17. Bd3 (17. cxb5 Qc5 $18) (17. Rxb5 Bd7 $16) (17. Qe3 Qa1 $18) 17... Qa1 $18) 16... Bd7 {[%emt 0:01:16]} 17. g5 {[%emt 0:02:58]} (17. Rxb7 Ba4 $16) 17... Bg7 {[%emt 0:02:13]} 18. Bb5 {[%emt 0:00:31]} ({Not} 18. Rxb7 Ba4 $16) 18... Bxb5 {[%emt 0:04:08]} 19. Rxb5 {[%emt 0:00:01]} Rfc8 {[%emt 0:02:02]} 20. Ne2 {[%emt 0:01:11]} ({Weaker is} 20. Rxb7 Rc2 21. Rb3 (21. Rxe7 $2 {is the wrong capture.} Qd2+ 22. Kf1 Rc1 $19) 21... Rxa2 $16) 20... Qc4 {[%emt 0:03:49]} 21. Rxb7 {[%emt 0:08:34]} Qxa2 {[%emt 0:06:11]} 22. Rxe7 {[%emt 0:00:41]} Rab8 {[%emt 0:01:30]} 23. f5 {[%emt 0:00:35] fxg6 would kill now.} Rb3 {[%emt 0:01:40] [#]} 24. Rxa7 $2 {[%emt 0:03:32]} Qc2 {[%emt 0:01:10]} 25. Qf2 {[%emt 0:02:09]} Rb1 {[%emt 0:02:00][%csl Gc2][%cal Rb1d1] [#]} 26. O-O $1 {[%emt 0:00:12][%cal Of5g6] Strongly threatening fxg6!} Rxd1 {[%emt 0:00:07]} 27. fxg6 {[%emt 0:03:07]} Rxf1+ {[%emt 0:05:03]} 28. Qxf1 {[%emt 0:00:10]} Qc5+ {[%emt 0:03:27]} 29. Qf2 {[%emt 0:00:06]} hxg6 {[%emt 0:00:05]} 30. Qxc5 {[%emt 0:00:05]} (30. Rxf7 {is interesting.} Qb4 31. Re7 Qb1+ 32. Kh2) 30... Rxc5 $11 {[%emt 0:00:04][%mdl 4096] Endgame. KRB-KRN} 31. Kf2 {[%emt 0:00:22]} Rb5 {[%emt 0:00:49]} 32. Ra3 {[%emt 0:00:31]} Be5 {[%emt 0:01:44]} 33. Kf3 {[%emt 0:00:35]} Rb1 {[%emt 0:00:31]} 34. g3 {[%emt 0:00:41]} Kf8 {[%emt 0:00:29]} 35. Rd3 {[%emt 0:00:48]} Ke7 {[%emt 0:03:52]} 36. Nd4 {[%emt 0:00:42]} Bxd4 {[%emt 0:02:19]} 37. Rxd4 $14 {[%emt 0:00:00] KR-KR} Rf1+ {[%emt 0:01:35]} 38. Ke2 {[%emt 0:00:37]} Rh1 {[%emt 0:00:19]} 39. Kf3 {[%emt 0:01:25]} Rf1+ {[%emt 0:01:21]} 40. Kg2 {[%emt 0:00:00]} Re1 {[%emt 0:00:00]} 41. Ra4 {[%emt 0:00:27]} Kd7 {[%emt 0:02:03]} 42. Kf2 {[%emt 0:00:49]} Rh1 {[%emt 0:00:07]} 43. Ra7+ {[%emt 0:02:11]} Ke8 {[%emt 0:00:05]} 44. Ke3 {[%emt 0:00:17]} Rg1 {[%emt 0:01:51]} 45. Kf2 {[%emt 0:08:39]} Rh1 {[%emt 0:02:00]} 46. Ra3 {[%emt 0:00:04]} ({White should play} 46. Kf3 $14) 46... Rh5 $1 $11 {[%emt 0:01:28]} 47. Ra8+ {[%emt 0:01:22] White really could win this.   Weighted Error Value: White=0.27 (precise) /Black=0.22 (precise) .  Missed win:     	White=1     	---        Mistake:       	White=1     	Black=4      Inaccurate:     	---       	Black=1      OK:         	White=13    	Black=15     Best:        	White=5     	Black=6      Strong:       	White=1     	Black=1} 1/2-1/2

[Event "Srdja Dragasevic Memorial-A 2024"]
[Site "Cetinje"]
[Date "2024.06.26"]
[Round "6.3"]
[White "Karthik Venkataraman"]
[Black "Djukic, Nikola"]
[Result "1/2-1/2"]
[ECO "B36"]
[WhiteElo "2590"]
[BlackElo "2532"]
[Annotator "TA"]
[PlyCount "52"]
[EventDate "2024.06.23"]
[EventType "swiss"]
[EventCountry "MNE"]
[SourceTitle "playchess.com"]
[Source "ChessBase"]
[SourceQuality "1"]
[TimeControl "40/5400+30:1800+30"]

{[%evp 18,52,34,33,53,22,50,35,65,31,32,10,22,10,15,28,20,27,12,-6,-4,-4,-7,-58,-53,-54,-56,-54,-27,-27,-27,-27,-27,-32,-49,-49,0]} 1. e4 {[%emt 0:03:07]} c5 {[%emt 0:00:10]} 2. Nf3 {[%emt 0:00:20]} Nc6 {[%emt 0:00:07]} 3. d4 {[%emt 0:00:05]} cxd4 {[%emt 0:00:05]} 4. Nxd4 {[%emt 0:00:04]} g6 {[%emt 0:00:05]} 5. c4 {[%emt 0:00:11]} Nf6 {[%emt 0:00:07]} 6. Nc3 {[%emt 0:00:05]} d6 {[%emt 0:00:05]} 7. Be2 {[%emt 0:00:05]} Nxd4 {[%emt 0:00:27]} 8. Qxd4 {[%emt 0:00:05]} Bg7 {[%emt 0:00:05]} 9. Be3 {[%emt 0:00:27]} O-O {[%emt 0:00:24]} 10. Qd3 {[%emt 0:00:14]} Bd7 {[%emt 0:04:47]} 11. O-O {[%emt 0:00:10]} a5 {[%emt 0:00:09]} 12. Bd4 {[%emt 0:01:19]} a4 {[%emt 0:04:15] White is slightly better.} 13. f4 {[%emt 0:00:50] White is more active.} Bc6 {[%emt 0:01:26]} 14. b4 {[%emt 0:03:53] Black must now prevent Qe3.} axb3 {[%emt 0:00:08]} 15. axb3 {[%emt 0:00:05]} Rxa1 {[%emt 0:01:47]} 16. Rxa1 {[%emt 0:00:09]} e5 {[%emt 0:01:07]} 17. fxe5 {[%emt 0:13:36]} dxe5 {[%emt 0:01:08]} 18. Bxe5 {[%emt 0:09:24]} Qxd3 {[%emt 0:01:59]} 19. Bxd3 {[%emt 0:00:04]} Re8 {[%emt 0:00:09]} 20. Bd4 {[%emt 0:00:08]} (20. Bxf6 $1 $11 Bxf6 21. Rc1) 20... Rd8 $1 $15 {[%emt 0:09:27]} 21. Nd5 {[%emt 0:01:22]} Nxd5 {[%emt 0:01:28]} 22. Bxg7 {[%emt 0:00:07]} Nc7 {[%emt 0:15:57]} 23. Be5 {[%emt 0:01:12]} Rxd3 {[%emt 0:00:10]} 24. Bxc7 {[%emt 0:00:08]} Bxe4 {[%emt 0:00:54][%cal Of7f6]} ({Resist} 24... Rxb3 25. Be5 Kf8 26. Rd1 $17) 25. Ra8+ {[%emt 0:04:30]} Kg7 {[%emt 0:00:44]} 26. Rd8 {[%emt 0:00:05]} Rxd8 {[%emt 0:04:22] Weighted Error Value: White=0.15 (very precise) /Black=0.07 (flawless) .  Mistake:       	White=1     	Black=1      Inaccurate:     	White=2     	Black=3      OK:         	White=4     	Black=8      Best:        	---       	Black=2      Strong:       	---       	Black=1} (26... Rxb3 $15 {feels stronger.} 27. Be5+ Kh6) 1/2-1/2

[Event "Srdja Dragasevic Memorial-A 2024"]
[Site "Cetinje"]
[Date "2024.06.26"]
[Round "6.4"]
[White "Tadic, Stefan"]
[Black "Pecurica, Milos"]
[Result "1/2-1/2"]
[ECO "D02"]
[WhiteElo "2421"]
[BlackElo "2338"]
[Annotator "RC"]
[PlyCount "133"]
[EventDate "2024.06.23"]
[EventType "swiss"]
[EventCountry "MNE"]
[SourceTitle "playchess.com"]
[Source "ChessBase"]
[SourceQuality "1"]
[TimeControl "40/5400+30:1800+30"]

1. Nf3 {[%emt 0:00:05]} Nf6 {[%emt 0:06:02]} 2. d4 {[%emt 0:00:17]} d5 {[%emt 0:00:38]} 3. Bf4 {[%emt 0:00:05]} c5 {[%emt 0:01:01]} 4. e3 {[%emt 0:00:06]} Nc6 {[%emt 0:00:10]} 5. Nbd2 {[%emt 0:00:06]} cxd4 {[%emt 0:01:41]} 6. exd4 {[%emt 0:00:05]} Bf5 {[%emt 0:01:06]} 7. Bb5 {[%emt 0:00:09]} a6 {[%emt 0:08:54]} 8. Bxc6+ {[%emt 0:01:23]} bxc6 {[%emt 0:00:01]} 9. O-O {[%emt 0:10:56]} e6 {[%emt 0:05:35]} 10. Nb3 {[%emt 0:00:07]} Bg4 {[%emt 0:03:18]} 11. Qd3 {[%emt 0:08:16]} Bxf3 {[%emt 0:00:19]} 12. Qxf3 {[%emt 0:00:04]} Bd6 {[%emt 0:01:20]} 13. Rfc1 {[%emt 0:09:50]} Bxf4 {[%emt 0:02:05]} 14. Qxf4 {[%emt 0:00:53]} O-O {[%emt 0:00:38]} 15. c4 {[%emt 0:00:06]} Qb8 {[%emt 0:00:51]} 16. Qxb8 {[%emt 0:07:36]} Rfxb8 {[%emt 0:00:31]} 17. cxd5 {[%emt 0:00:04]} cxd5 {[%emt 0:00:16]} 18. Rc6 {[%emt 0:00:04]} a5 {[%emt 0:02:26]} 19. Rac1 {[%emt 0:00:19]} g5 {[%emt 0:04:53]} 20. R6c2 {[%emt 0:14:14]} Rb4 {[%emt 0:05:55]} 21. Rd1 {[%emt 0:00:09]} Rab8 {[%emt 0:03:39]} 22. f3 {[%emt 0:11:37]} a4 {[%emt 0:01:53]} 23. Nc5 {[%emt 0:00:36]} Rxb2 {[%emt 0:00:21]} 24. Rxb2 {[%emt 0:00:26]} Rxb2 {[%emt 0:00:05]} 25. a3 {[%emt 0:00:02]} g4 {[%emt 0:06:56]} 26. Ra1 {[%emt 0:14:20]} gxf3 {[%emt 0:02:43]} 27. gxf3 {[%emt 0:00:02]} Nh5 {[%emt 0:03:55]} 28. Nxa4 {[%emt 0:00:05]} Rc2 {[%emt 0:00:30]} 29. Nc5 {[%emt 0:05:07]} Nf4 {[%emt 0:01:15]} 30. Nb3 {[%emt 0:00:04]} Rb2 {[%emt 0:04:54]} 31. Nc1 {[%emt 0:00:07]} Rd2 {[%emt 0:00:28]} 32. Nb3 {[%emt 0:06:13]} Rd3 {[%emt 0:05:13]} 33. Nc5 {[%emt 0:00:05]} Rxd4 {[%emt 0:05:14]} 34. a4 {[%emt 0:00:04]} Rc4 {[%emt 0:00:30]} 35. Nb3 {[%emt 0:00:38]} Rb4 {[%emt 0:00:17]} 36. Nc5 {[%emt 0:00:19]} Rc4 {[%emt 0:06:39]} 37. Nb3 {[%emt 0:00:38]} Ne2+ {[%emt 0:04:20]} 38. Kf2 {[%emt 0:00:48]} Nc3 {[%emt 0:00:11]} 39. a5 {[%emt 0:00:06]} Nb5 {[%emt 0:00:59]} 40. a6 {[%emt 0:00:00]} Na7 {[%emt 0:00:00]} 41. Nc1 {[%emt 0:06:42]} Kf8 {[%emt 0:08:34]} 42. Nd3 {[%emt 0:00:08]} Ke7 {[%emt 0:02:35]} 43. Rb1 {[%emt 0:08:09]} Rc7 {[%emt 0:08:45]} 44. Rb7 {[%emt 0:10:23]} Rxb7 {[%emt 0:03:01]} 45. axb7 {[%emt 0:00:02]} Nc6 {[%emt 0:00:05]} 46. f4 {[%emt 0:01:00]} Nb8 {[%emt 0:03:00]} 47. Ke3 {[%emt 0:07:38]} f6 {[%emt 0:00:25]} 48. Kd4 {[%emt 0:00:44]} Kd6 {[%emt 0:00:31]} 49. Nb4 {[%emt 0:00:07]} f5 {[%emt 0:05:02]} 50. h4 {[%emt 0:02:06]} h5 {[%emt 0:00:08]} 51. Nd3 {[%emt 0:06:30]} Nd7 {[%emt 0:02:51]} 52. Ne5 {[%emt 0:01:06]} Nb8 {[%emt 0:00:05]} 53. Nd3 {[%emt 0:00:32]} Nc6+ {[%emt 0:00:10]} 54. Ke3 {[%emt 0:00:01]} d4+ {[%emt 0:06:59]} 55. Ke2 {[%emt 0:00:01]} Nb8 {[%emt 0:00:27]} 56. Ne5 {[%emt 0:03:39]} Kc7 {[%emt 0:00:31]} 57. Nf3 {[%emt 0:00:57]} Nc6 {[%emt 0:01:23]} 58. Ng5 {[%emt 0:00:02]} e5 {[%emt 0:02:46]} 59. fxe5 {[%emt 0:00:22]} Kxb7 {[%emt 0:01:33]} 60. Ne6 {[%emt 0:00:14]} Nxe5 {[%emt 0:00:39]} 61. Nxd4 {[%emt 0:00:11]} f4 {[%emt 0:00:13]} 62. Ne6 {[%emt 0:00:07]} Ng6 {[%emt 0:00:32]} 63. Ng7 {[%emt 0:00:22]} f3+ {[%emt 0:00:17]} 64. Kxf3 {[%emt 0:00:04]} Nxh4+ {[%emt 0:00:03]} 65. Kg3 {[%emt 0:00:08]} Nf5+ {[%emt 0:00:05]} 66. Nxf5 {[%emt 0:00:04]} h4+ {[%emt 0:00:02]} 67. Kxh4 {[%emt 0:00:04]} 1/2-1/2

[Event "Srdja Dragasevic Memorial-A 2024"]
[Site "Cetinje"]
[Date "2024.06.26"]
[Round "6.5"]
[White "Yaksin, Oleg"]
[Black "Kalezic, Blazo"]
[Result "1/2-1/2"]
[ECO "A07"]
[WhiteElo "2389"]
[BlackElo "2398"]
[Annotator "RC"]
[PlyCount "34"]
[EventDate "2024.06.23"]
[EventType "swiss"]
[EventCountry "MNE"]
[SourceTitle "playchess.com"]
[Source "ChessBase"]
[SourceQuality "1"]
[TimeControl "40/5400+30:1800+30"]

1. Nf3 {[%emt 0:00:03]} d5 {[%emt 0:00:14]} 2. g3 {[%emt 0:00:06]} Bg4 {[%emt 0:00:19]} 3. Bg2 {[%emt 0:00:05]} Nd7 {[%emt 0:01:11]} 4. c4 {[%emt 0:00:06]} e6 {[%emt 0:04:08]} 5. cxd5 {[%emt 0:00:58]} exd5 {[%emt 0:00:09]} 6. O-O {[%emt 0:00:06]} Ngf6 {[%emt 0:00:52]} 7. h3 {[%emt 0:00:22]} Bxf3 {[%emt 0:00:19]} 8. exf3 {[%emt 0:01:01]} Be7 {[%emt 0:00:20]} 9. f4 {[%emt 0:00:49]} O-O {[%emt 0:00:32]} 10. d3 {[%emt 0:00:48]} c6 {[%emt 0:01:02]} 11. Nd2 {[%emt 0:00:30]} a5 {[%emt 0:00:59]} 12. Nf3 {[%emt 0:01:59]} a4 {[%emt 0:01:05]} 13. Rb1 {[%emt 0:01:01]} Ne8 {[%emt 0:03:41]} 14. Bd2 {[%emt 0:08:12]} Nd6 {[%emt 0:04:35]} 15. Re1 {[%emt 0:03:29]} Nb5 {[%emt 0:02:04]} 16. d4 {[%emt 0:28:13]} Nb6 {[%emt 0:10:51]} 17. Bf1 {[%emt 0:06:56]} Nc4 {[%emt 0:02:27]} 1/2-1/2

[Event "Srdja Dragasevic Memorial-A 2024"]
[Site "Cetinje"]
[Date "2024.06.26"]
[Round "6.6"]
[White "Xie, Bryan"]
[Black "Sukovic, Andrej"]
[Result "1/2-1/2"]
[ECO "C02"]
[WhiteElo "2281"]
[BlackElo "2350"]
[Annotator "RC"]
[PlyCount "197"]
[EventDate "2024.06.23"]
[EventType "swiss"]
[EventCountry "MNE"]
[SourceTitle "playchess.com"]
[Source "ChessBase"]
[SourceQuality "1"]
[TimeControl "40/5400+30:1800+30"]

1. e4 {[%emt 0:00:01]} e6 {[%emt 0:08:17]} 2. d4 {[%emt 0:00:07]} d5 {[%emt 0:00:06]} 3. e5 {[%emt 0:00:07]} c5 {[%emt 0:00:06]} 4. c3 {[%emt 0:00:04]} Nc6 {[%emt 0:00:04]} 5. Nf3 {[%emt 0:00:05]} Nge7 {[%emt 0:00:04]} 6. Be2 {[%emt 0:01:02]} Nf5 {[%emt 0:00:21]} 7. dxc5 {[%emt 0:01:41]} Bxc5 {[%emt 0:02:51]} 8. O-O {[%emt 0:06:19]} Nh4 {[%emt 0:06:09]} 9. Nbd2 {[%emt 0:00:48]} Ng6 {[%emt 0:00:09]} 10. Nb3 {[%emt 0:31:51]} Bb6 {[%emt 0:12:34]} 11. Bg5 {[%emt 0:00:33]} Qc7 {[%emt 0:00:09]} 12. Bd3 {[%emt 0:05:43]} Ncxe5 {[%emt 0:11:08]} 13. Nxe5 {[%emt 0:00:05]} Qxe5 {[%emt 0:01:08]} 14. Qh5 {[%emt 0:19:07]} O-O {[%emt 0:16:37]} 15. Rae1 {[%emt 0:13:44]} Qc7 {[%emt 0:07:38]} 16. Nd4 {[%emt 0:03:54]} e5 {[%emt 0:02:15]} 17. Nf5 {[%emt 0:11:44]} f6 {[%emt 0:17:42]} 18. Bd2 {[%emt 0:01:58]} e4 {[%emt 0:00:55]} 19. Bc2 {[%emt 0:00:32]} Qe5 {[%emt 0:02:26]} 20. Ng3 {[%emt 0:00:09]} Qxh5 {[%emt 0:01:56]} 21. Nxh5 {[%emt 0:00:01]} Be6 {[%emt 0:01:58]} 22. c4 {[%emt 0:01:20]} f5 {[%emt 0:00:23]} 23. cxd5 {[%emt 0:00:31]} Bxd5 {[%emt 0:00:04]} 24. Bc3 {[%emt 0:00:00]} Rf7 {[%emt 0:02:24]} 25. Rd1 {[%emt 0:00:25]} Bxa2 {[%emt 0:00:45]} 26. Rd6 {[%emt 0:01:07]} Bc7 {[%emt 0:01:28]} 27. Rd2 {[%emt 0:00:28]} Be6 {[%emt 0:00:58]} 28. Rfd1 {[%emt 0:00:27]} Be5 {[%emt 0:01:18]} 29. Bb4 {[%emt 0:00:30]} h6 {[%emt 0:01:06]} 30. Ba4 {[%emt 0:00:36]} Nf4 {[%emt 0:01:55]} 31. Ng3 {[%emt 0:00:29]} Nd3 {[%emt 0:00:09]} 32. Ba3 {[%emt 0:00:10]} a6 {[%emt 0:00:54]} 33. f3 {[%emt 0:00:40]} Bd4+ {[%emt 0:00:27]} 34. Kf1 {[%emt 0:00:02]} Bc4 {[%emt 0:00:15]} 35. b3 {[%emt 0:00:04]} Bb5 {[%emt 0:00:13]} 36. Ne2 {[%emt 0:01:27]} Be3 {[%emt 0:00:47]} 37. Rc2 {[%emt 0:00:01]} Nf4 {[%emt 0:00:32]} 38. Bxb5 {[%emt 0:00:10]} axb5 {[%emt 0:00:04]} 39. Bc5 {[%emt 0:01:24]} Bxc5 {[%emt 0:00:30]} 40. Nxf4 {[%emt 0:00:00]} Bf8 {[%emt 0:00:00]} 41. Rd5 {[%emt 0:01:35]} exf3 {[%emt 0:06:12]} 42. gxf3 {[%emt 0:00:08]} b4 {[%emt 0:00:20]} 43. Ng6 {[%emt 0:01:11]} Re8 {[%emt 0:05:46]} 44. Kf2 {[%emt 0:01:48]} Kh7 {[%emt 0:02:55]} 45. Nxf8+ {[%emt 0:00:12]} Rexf8 {[%emt 0:00:18]} 46. Rb5 {[%emt 0:01:50]} Rd8 {[%emt 0:00:31]} 47. Rxb4 {[%emt 0:00:18]} f4 {[%emt 0:00:53]} 48. h4 {[%emt 0:00:30]} Rd5 {[%emt 0:01:32]} 49. Rcc4 {[%emt 0:09:21]} Rd2+ {[%emt 0:00:53]} 50. Ke1 {[%emt 0:00:12]} Rb2 {[%emt 0:01:24]} 51. Rxf4 {[%emt 0:03:44]} Rxf4 {[%emt 0:00:07]} 52. Rxf4 {[%emt 0:00:05]} Rxb3 {[%emt 0:00:03]} 53. Kf2 {[%emt 0:00:14]} Kg6 {[%emt 0:01:23]} 54. Rg4+ {[%emt 0:00:20]} Kf7 {[%emt 0:00:23]} 55. Rf4+ {[%emt 0:00:10]} Kg8 {[%emt 0:00:06]} 56. Rd4 {[%emt 0:02:14]} Rb2+ {[%emt 0:01:07]} 57. Kg3 {[%emt 0:00:23]} Rb6 {[%emt 0:00:20]} 58. Rd7 {[%emt 0:02:44]} Rg6+ {[%emt 0:00:36]} 59. Kh3 {[%emt 0:02:17]} b6 {[%emt 0:00:18]} 60. Rb7 {[%emt 0:00:25]} Kf8 {[%emt 0:00:20]} 61. f4 {[%emt 0:06:27]} h5 {[%emt 0:01:06]} 62. f5 {[%emt 0:00:22]} Rf6 {[%emt 0:03:38]} 63. Kg3 {[%emt 0:00:05]} Ke8 {[%emt 0:02:34]} 64. Kf4 {[%emt 0:05:31]} g6 {[%emt 0:00:01]} 65. Ke5 {[%emt 0:00:55]} Rxf5+ {[%emt 0:00:07]} 66. Ke6 {[%emt 0:00:01]} Kf8 {[%emt 0:00:38]} 67. Rxb6 {[%emt 0:00:04]} Kg7 {[%emt 0:01:10]} 68. Rb4 {[%emt 0:00:23]} Kh6 {[%emt 0:00:52]} 69. Rb1 {[%emt 0:01:26]} Rf4 {[%emt 0:00:44]} 70. Rh1 {[%emt 0:00:03]} g5 {[%emt 0:01:00]} 71. Ke5 {[%emt 0:00:16]} Kg6 {[%emt 0:01:42]} 72. hxg5 {[%emt 0:01:01]} Rg4 {[%emt 0:00:07]} 73. Rb1 {[%emt 0:00:42]} Kxg5 {[%emt 0:00:21]} 74. Rb8 {[%emt 0:00:07]} Ra4 {[%emt 0:00:18]} 75. Rg8+ {[%emt 0:00:05]} Kh4 {[%emt 0:00:00]} 76. Rg1 {[%emt 0:01:22]} Rg4 {[%emt 0:00:10]} 77. Rh1+ {[%emt 0:00:03]} Kg5 {[%emt 0:00:05]} 78. Rf1 {[%emt 0:00:31]} Rg3 {[%emt 0:02:50]} 79. Ke4 {[%emt 0:00:43]} h4 {[%emt 0:00:11]} 80. Rf8 {[%emt 0:00:38]} Kg4 {[%emt 0:00:01]} 81. Rg8+ {[%emt 0:00:35]} Kh3 {[%emt 0:00:08]} 82. Rh8 {[%emt 0:00:04]} Rg7 {[%emt 0:00:56]} 83. Kf4 {[%emt 0:00:16]} Rg1 {[%emt 0:01:15]} 84. Rh7 {[%emt 0:00:37]} Rg8 {[%emt 0:00:09]} 85. Kf3 {[%emt 0:01:02]} Rf8+ {[%emt 0:00:05]} 86. Ke2 {[%emt 0:00:29]} Kg3 {[%emt 0:00:05]} 87. Rg7+ {[%emt 0:00:06]} Kh2 {[%emt 0:00:12]} 88. Rh7 {[%emt 0:00:13]} h3 {[%emt 0:00:12]} 89. Rg7 {[%emt 0:00:03]} Kh1 {[%emt 0:00:12]} 90. Rh7 {[%emt 0:00:28]} h2 {[%emt 0:00:28]} 91. Rg7 {[%emt 0:00:01]} Ra8 {[%emt 0:00:20]} 92. Kf2 {[%emt 0:00:35]} Ra2+ {[%emt 0:00:25]} 93. Kf1 {[%emt 0:01:15]} Ra1+ {[%emt 0:00:03]} 94. Kf2 {[%emt 0:00:02]} Rg1 {[%emt 0:00:07]} 95. Rb7 {[%emt 0:01:10]} Rg2+ {[%emt 0:00:21]} 96. Kf3 {[%emt 0:01:08]} Rg1 {[%emt 0:00:20]} 97. Kf2 {[%emt 0:00:13]} Rc1 {[%emt 0:00:19]} 98. Rg7 {[%emt 0:00:09]} Rf1+ {[%emt 0:00:34]} 99. Kxf1 {[%emt 0:00:02]} 1/2-1/2